[Event "*** Titled Tuesday Blitz"]
[Site "Chess.com"]
[Date "2020.05.12"]
[Round "8"]
[White "BogdanDeac"]
[Black "mbojan"]
[Result "0-1"]
[WhiteElo "2904"]
[BlackElo "2708"]
[TimeControl "180+1"]
[EndTime "11:34:51 PDT"]
[Termination "mbojan won on time"]

1. Nf3 {[%clk 0:03:00.9]} 1... Nf6 {[%clk 0:02:58.1]} 2. c4 {[%clk 0:03:00.2]}
2... g6 {[%clk 0:02:58.3]} 3. Nc3 {[%clk 0:03:00]} 3... d5 {[%clk 0:02:53.5]} 4.
cxd5 {[%clk 0:02:59.7]} 4... Nxd5 {[%clk 0:02:54.4]} 5. e4 {[%clk 0:02:56.5]}
5... Nb6 {[%clk 0:02:52.2]} 6. d4 {[%clk 0:02:56]} 6... Bg7 {[%clk 0:02:52]} 7.
h3 {[%clk 0:02:51.3]} 7... O-O {[%clk 0:02:51.8]} 8. Be2 {[%clk 0:02:51]} 8...
c5 {[%clk 0:02:33.8]} 9. dxc5 {[%clk 0:02:40.5]} 9... Bxc3+ {[%clk 0:02:32.2]}
10. bxc3 {[%clk 0:02:37.9]} 10... Qxd1+ {[%clk 0:02:32.2]} 11. Bxd1 {[%clk
0:02:31.8]} 11... N6d7 {[%clk 0:02:31.9]} 12. Ba3 {[%clk 0:02:26.9]} 12... Na6
{[%clk 0:02:28]} 13. c6 {[%clk 0:02:22.7]} 13... bxc6 {[%clk 0:02:28.9]} 14. Nd4
{[%clk 0:02:20.1]} 14... Bb7 {[%clk 0:02:10.7]} 15. Rb1 {[%clk 0:02:12.6]} 15...
Nac5 {[%clk 0:02:06.7]} 16. f3 {[%clk 0:02:05.2]} 16... Rab8 {[%clk 0:02:01.6]}
17. Nb3 {[%clk 0:01:59.6]} 17... Nxb3 {[%clk 0:01:55.4]} 18. Bxb3 {[%clk
0:01:52]} 18... c5 {[%clk 0:01:50.7]} 19. O-O {[%clk 0:01:49.4]} 19... Bc6
{[%clk 0:01:49.1]} 20. Rfd1 {[%clk 0:01:46]} 20... Rfc8 {[%clk 0:01:44.1]} 21.
Bc4 {[%clk 0:01:40.3]} 21... Rxb1 {[%clk 0:01:23.5]} 22. Rxb1 {[%clk 0:01:39.1]}
22... e6 {[%clk 0:01:02]} 23. Kf2 {[%clk 0:01:32.4]} 23... Kf8 {[%clk
0:01:00.1]} 24. Ba6 {[%clk 0:01:31.7]} 24... Rc7 {[%clk 0:00:43.9]} 25. Bc1
{[%clk 0:01:31.6]} 25... Nb6 {[%clk 0:00:36.3]} 26. Be3 {[%clk 0:01:18.3]} 26...
Be8 {[%clk 0:00:29.4]} 27. Bf4 {[%clk 0:01:13.2]} 27... Rd7 {[%clk 0:00:25.7]}
28. Bb5 {[%clk 0:01:12.5]} 28... Rd8 {[%clk 0:00:23.7]} 29. Bg5 {[%clk
0:01:04.5]} 29... Rc8 {[%clk 0:00:18.8]} 30. Ba6 {[%clk 0:01:02.2]} 30... Rc7
{[%clk 0:00:18]} 31. Bf4 {[%clk 0:01:00.4]} 31... Rd7 {[%clk 0:00:18.3]} 32. Ke2
{[%clk 0:00:59.1]} 32... f6 {[%clk 0:00:14.3]} 33. Be3 {[%clk 0:00:56.4]} 33...
Rc7 {[%clk 0:00:14.2]} 34. Bb5 {[%clk 0:00:50.7]} 34... Bxb5+ {[%clk 0:00:12.1]}
35. Rxb5 {[%clk 0:00:50]} 35... Nd7 {[%clk 0:00:12.9]} 36. Bf4 {[%clk
0:00:47.3]} 36... e5 {[%clk 0:00:13.2]} 37. Be3 {[%clk 0:00:47.2]} 37... Ke7
{[%clk 0:00:13.9]} 38. Ra5 {[%clk 0:00:41.8]} 38... Rb7 {[%clk 0:00:11.8]} 39.
Kd3 {[%clk 0:00:36.8]} 39... Kd6 {[%clk 0:00:05.2]} 40. Ra6+ {[%clk 0:00:35.7]}
40... Kc7 {[%clk 0:00:04.3]} 41. Kc2 {[%clk 0:00:32.1]} 41... Kd8 {[%clk
0:00:02.6]} 42. a4 {[%clk 0:00:27.8]} 42... Rc7 {[%clk 0:00:03.1]} 43. Ra5
{[%clk 0:00:23.3]} 43... Ke7 {[%clk 0:00:02.9]} 44. Rb5 {[%clk 0:00:22.9]} 44...
Kd6 {[%clk 0:00:03.2]} 45. Kd3 {[%clk 0:00:21.8]} 45... Nb6 {[%clk 0:00:02.9]}
46. a5 {[%clk 0:00:21.2]} 46... c4+ {[%clk 0:00:03.4]} 47. Kc2 {[%clk
0:00:20.5]} 47... Nd7 {[%clk 0:00:04.3]} 48. a6 {[%clk 0:00:18.2]} 48... Rc6
{[%clk 0:00:04.6]} 49. Ra5 {[%clk 0:00:17.3]} 49... Nb8 {[%clk 0:00:04.9]} 50.
Bxa7 {[%clk 0:00:17.2]} 50... Nxa6 {[%clk 0:00:05.5]} 51. Bf2 {[%clk 0:00:17.4]}
51... Nc7 {[%clk 0:00:05.9]} 52. Ra7 {[%clk 0:00:16.3]} 52... Ra6 {[%clk
0:00:05.8]} 53. Rxa6+ {[%clk 0:00:13.9]} 53... Nxa6 {[%clk 0:00:06.7]} 54. Bh4
{[%clk 0:00:13.8]} 54... f5 {[%clk 0:00:06.5]} 55. exf5 {[%clk 0:00:13.1]} 55...
gxf5 {[%clk 0:00:07.4]} 56. g4 {[%clk 0:00:13.4]} 56... f4 {[%clk 0:00:07.7]}
57. Bf2 {[%clk 0:00:13]} 57... Nc7 {[%clk 0:00:07]} 58. h4 {[%clk 0:00:12.3]}
58... Ne6 {[%clk 0:00:07.5]} 59. Kd2 {[%clk 0:00:12.2]} 59... Ng7 {[%clk
0:00:07.6]} 60. h5 {[%clk 0:00:11.1]} 60... Ne6 {[%clk 0:00:07.6]} 61. Bh4
{[%clk 0:00:11.2]} 61... Kd5 {[%clk 0:00:07.3]} 62. Ke2 {[%clk 0:00:10.3]} 62...
e4 {[%clk 0:00:07.6]} 63. g5 {[%clk 0:00:09.8]} 63... Ke5 {[%clk 0:00:07.6]} 64.
fxe4 {[%clk 0:00:08.4]} 64... Kxe4 {[%clk 0:00:08.5]} 65. g6 {[%clk 0:00:07.3]}
65... hxg6 {[%clk 0:00:09.4]} 66. h6 {[%clk 0:00:06.5]} 66... Nf8 {[%clk
0:00:09.8]} 67. Be7 {[%clk 0:00:05.3]} 67... Nh7 {[%clk 0:00:10.2]} 68. Kf2
{[%clk 0:00:04.4]} 68... g5 {[%clk 0:00:10.9]} 69. Bd6 {[%clk 0:00:04.2]} 69...
g4 {[%clk 0:00:11.2]} 70. Kg2 {[%clk 0:00:04.4]} 70... Kf5 {[%clk 0:00:11.8]}
71. Kf2 {[%clk 0:00:04.2]} 71... Kg5 {[%clk 0:00:12.4]} 72. Bc7 {[%clk
0:00:04.1]} 72... f3 {[%clk 0:00:12.8]} 73. Kg3 {[%clk 0:00:04.1]} 73... Kf5
{[%clk 0:00:12.7]} 74. Bd6 {[%clk 0:00:02.8]} 74... Kg5 {[%clk 0:00:13]} 75.
Bf4+ {[%clk 0:00:02.5]} 75... Kh5 {[%clk 0:00:13.2]} 76. Be3 {[%clk 0:00:02.2]}
76... Nf6 {[%clk 0:00:13.2]} 77. Bd4 {[%clk 0:00:02.2]} 77... Ne4+ {[%clk
0:00:13.1]} 78. Kf4 {[%clk 0:00:02]} 78... Ng5 {[%clk 0:00:12.9]} 0-1

[Event "*** Titled Tuesday Blitz"]
[Site "Chess.com"]
[Date "2020.05.12"]
[Round "8"]
[White "dopolian"]
[Black "Alopekos"]
[Result "1/2-1/2"]
[WhiteElo "2320"]
[BlackElo "2465"]
[TimeControl "180+1"]
[EndTime "11:34:52 PDT"]
[Termination "Game drawn by agreement"]

1. e4 {[%clk 0:03:00.9]} 1... c5 {[%clk 0:02:59.8]} 2. Nf3 {[%clk 0:03:00.9]}
2... e6 {[%clk 0:03:00.4]} 3. d4 {[%clk 0:03:00.9]} 3... cxd4 {[%clk 0:03:01.3]}
4. Nxd4 {[%clk 0:03:01.1]} 4... Nc6 {[%clk 0:03:01.7]} 5. Nb5 {[%clk 0:02:58.8]}
5... d6 {[%clk 0:02:58]} 6. c4 {[%clk 0:02:58.7]} 6... Nf6 {[%clk 0:02:56.2]} 7.
N1c3 {[%clk 0:02:57.9]} 7... a6 {[%clk 0:02:56]} 8. Nd4 {[%clk 0:02:56.3]} 8...
Be7 {[%clk 0:02:46.2]} 9. Be3 {[%clk 0:02:56.1]} 9... O-O {[%clk 0:02:44.9]} 10.
Be2 {[%clk 0:02:56.6]} 10... Nxd4 {[%clk 0:02:32.2]} 11. Qxd4 {[%clk 0:02:48.2]}
11... Nd7 {[%clk 0:02:26]} 12. O-O {[%clk 0:02:46]} 12... Nc5 {[%clk 0:02:25.1]}
13. f4 {[%clk 0:02:31.6]} 13... Qc7 {[%clk 0:02:12.6]} 14. b4 {[%clk 0:02:27.5]}
14... Nd7 {[%clk 0:02:05.2]} 15. Rac1 {[%clk 0:02:19.8]} 15... b6 {[%clk
0:02:00.2]} 16. Bf3 {[%clk 0:02:08.7]} 16... Bb7 {[%clk 0:01:58.9]} 17. Na4
{[%clk 0:01:30.5]} 17... Rab8 {[%clk 0:01:37]} 18. Nxb6 {[%clk 0:01:13.9]} 18...
Nxb6 {[%clk 0:01:37.9]} 19. Qxb6 {[%clk 0:01:13.4]} 19... Qxb6 {[%clk
0:01:38.8]} 20. Bxb6 {[%clk 0:01:13.3]} 20... Bxe4 {[%clk 0:01:39.2]} 21. Ba7
{[%clk 0:01:07]} 21... Rb7 {[%clk 0:01:19.6]} 22. Bxe4 {[%clk 0:01:06.1]} 22...
Rxa7 {[%clk 0:01:19.9]} 23. c5 {[%clk 0:01:06.3]} 23... a5 {[%clk 0:01:11.1]}
24. b5 {[%clk 0:00:46.3]} 24... dxc5 {[%clk 0:01:09.3]} 25. b6 {[%clk
0:00:46.5]} 25... Ra6 {[%clk 0:00:22.1]} 26. Rb1 {[%clk 0:00:40.9]} 26... c4
{[%clk 0:00:17.6]} 27. b7 {[%clk 0:00:38]} 27... Rb6 {[%clk 0:00:13.5]} 28. Kh1
{[%clk 0:00:27.4]} 28... Rb4 {[%clk 0:00:07.1]} 29. a3 {[%clk 0:00:23.9]} 29...
Rb3 {[%clk 0:00:07.4]} 30. Bc2 {[%clk 0:00:19.8]} 30... Rxb1 {[%clk 0:00:04.6]}
31. Rxb1 {[%clk 0:00:20.7]} 31... Bd6 {[%clk 0:00:05.1]} 32. g3 {[%clk 0:00:12]}
32... Rb8 {[%clk 0:00:05.6]} 33. a4 {[%clk 0:00:11.6]} 33... Kf8 {[%clk
0:00:05.4]} 34. Rb5 {[%clk 0:00:10.8]} 34... Bb4 {[%clk 0:00:05]} 35. Kg2 {[%clk
0:00:09.5]} 35... Ke7 {[%clk 0:00:04.7]} 36. Be4 {[%clk 0:00:09.4]} 36... f5
{[%clk 0:00:04.2]} 37. Bf3 {[%clk 0:00:08.9]} 37... c3 {[%clk 0:00:04.7]} 38.
Rb6 {[%clk 0:00:08.5]} 38... c2 {[%clk 0:00:04.3]} 39. Rc6 {[%clk 0:00:08.5]}
39... Rxb7 {[%clk 0:00:03.9]} 40. Rxc2 {[%clk 0:00:08.1]} 40... Rd7 {[%clk
0:00:03.9]} 41. Kf2 {[%clk 0:00:07.3]} 41... Rd3 {[%clk 0:00:03.8]} 42. Ke2
{[%clk 0:00:07.1]} 42... Ra3 {[%clk 0:00:03.4]} 43. Bc6 {[%clk 0:00:07.2]} 43...
Ra1 {[%clk 0:00:03.5]} 44. Bb5 {[%clk 0:00:07.2]} 44... Re1+ {[%clk 0:00:03.5]}
45. Kd3 {[%clk 0:00:07.4]} 45... Kf6 {[%clk 0:00:03.2]} 46. Kc4 {[%clk
0:00:07.3]} 46... Re4+ {[%clk 0:00:02.8]} 47. Kd3 {[%clk 0:00:07.1]} 47... Re1
{[%clk 0:00:03.6]} 48. Kc4 {[%clk 0:00:06.9]} 48... h5 {[%clk 0:00:03.2]} 49.
Kd4 {[%clk 0:00:06.6]} 49... h4 {[%clk 0:00:03.1]} 50. Rg2 {[%clk 0:00:04.5]}
50... Re4+ {[%clk 0:00:03]} 51. Kd3 {[%clk 0:00:04.2]} 51... h3 {[%clk
0:00:03.7]} 52. Re2 {[%clk 0:00:03.8]} 52... Rxe2 {[%clk 0:00:03.2]} 53. Kxe2
{[%clk 0:00:04.2]} 53... Bc5 {[%clk 0:00:03.6]} 54. Kf3 {[%clk 0:00:04.1]} 54...
Bg1 {[%clk 0:00:03.1]} 55. Bf1 {[%clk 0:00:04.1]} 55... Bxh2 {[%clk 0:00:03.3]}
56. Kf2 {[%clk 0:00:03.2]} 56... g5 {[%clk 0:00:02.2]} 57. fxg5+ {[%clk
0:00:04.1]} 57... Kxg5 {[%clk 0:00:02.5]} 58. Bxh3 {[%clk 0:00:05]} 58... f4
{[%clk 0:00:03]} 59. Bg2 {[%clk 0:00:05.9]} 59... Bxg3+ {[%clk 0:00:02.7]} 60.
Kf3 {[%clk 0:00:06.5]} 60... Kf5 {[%clk 0:00:03]} 61. Bh3+ {[%clk 0:00:06.7]}
61... Ke5 {[%clk 0:00:03.5]} 62. Bg4 {[%clk 0:00:07.3]} 62... Kd5 {[%clk
0:00:03.5]} 63. Bh5 {[%clk 0:00:07.7]} 63... e5 {[%clk 0:00:04]} 64. Bg6 {[%clk
0:00:08.2]} 64... Kc4 {[%clk 0:00:03.6]} 65. Ke4 {[%clk 0:00:08.1]} 65... Kb4
{[%clk 0:00:03.7]} 66. Be8 {[%clk 0:00:07]} 66... Ka3 {[%clk 0:00:04]} 67. Kxe5
{[%clk 0:00:06]} 67... f3+ {[%clk 0:00:04.5]} 68. Ke4 {[%clk 0:00:06.5]} 68...
f2 {[%clk 0:00:05.4]} 69. Bb5 {[%clk 0:00:06.7]} 69... Kb4 {[%clk 0:00:05]} 70.
Kf3 {[%clk 0:00:06.6]} 70... Bh4 {[%clk 0:00:05.3]} 71. Kg4 {[%clk 0:00:07]}
71... Be7 {[%clk 0:00:04.9]} 72. Kf3 {[%clk 0:00:07.5]} 72... Bc5 {[%clk
0:00:05.8]} 73. Ke2 {[%clk 0:00:07.8]} 73... Kc3 {[%clk 0:00:06.3]} 74. Kf1
{[%clk 0:00:08.7]} 74... Kd2 {[%clk 0:00:06.8]} 75. Bc6 {[%clk 0:00:07.2]} 75...
Ke3 {[%clk 0:00:06.3]} 76. Bb5 {[%clk 0:00:08.1]} 76... Bb4 {[%clk 0:00:06.5]}
77. Be8 {[%clk 0:00:09]} 77... Be1 {[%clk 0:00:07.3]} 78. Bb5 {[%clk 0:00:09.7]}
78... Kf3 {[%clk 0:00:07.3]} 79. Be8 {[%clk 0:00:10.6]} 79... Ke4 {[%clk
0:00:07.4]} 80. Bb5 {[%clk 0:00:11.5]} 80... Kd5 {[%clk 0:00:07.4]} 81. Be8
{[%clk 0:00:12.4]} 81... Kd6 {[%clk 0:00:07.9]} 82. Bb5 {[%clk 0:00:13.3]} 82...
Kc5 {[%clk 0:00:08.8]} 83. Ke2 {[%clk 0:00:13.7]} 83... Kd6 {[%clk 0:00:08.1]}
84. Kf1 {[%clk 0:00:14.6]} 84... Kc5 {[%clk 0:00:08.6]} 85. Ke2 {[%clk
0:00:15.5]} 85... Kb4 {[%clk 0:00:09.5]} 86. Kf1 {[%clk 0:00:16.4]} 86... Kc3
{[%clk 0:00:10.4]} 87. Ke2 {[%clk 0:00:17.3]} 87... Kc2 {[%clk 0:00:11.3]} 88.
Kf1 {[%clk 0:00:18.2]} 88... Kd2 {[%clk 0:00:11.4]} 89. Bc6 {[%clk 0:00:19.1]}
1/2-1/2

[Event "*** Titled Tuesday Blitz"]
[Site "Chess.com"]
[Date "2020.05.12"]
[Round "8"]
[White "FLamps8"]
[Black "Beca95"]
[Result "1-0"]
[WhiteElo "2593"]
[BlackElo "2884"]
[TimeControl "180+1"]
[EndTime "11:34:57 PDT"]
[Termination "FLamps8 won on time"]

1. d4 {[%clk 0:03:00.9]} 1... Nf6 {[%clk 0:02:58.9]} 2. Bf4 {[%clk 0:02:59.8]}
2... d6 {[%clk 0:02:57.6]} 3. Nc3 {[%clk 0:02:59.9]} 3... Nbd7 {[%clk
0:02:57.3]} 4. e4 {[%clk 0:02:57.7]} 4... e5 {[%clk 0:02:56.4]} 5. Be3 {[%clk
0:02:56.5]} 5... c6 {[%clk 0:02:55.6]} 6. Nf3 {[%clk 0:02:48.6]} 6... b5 {[%clk
0:02:54.3]} 7. a3 {[%clk 0:02:38.2]} 7... Bb7 {[%clk 0:02:51.9]} 8. Be2 {[%clk
0:02:27.2]} 8... Be7 {[%clk 0:02:50.7]} 9. O-O {[%clk 0:02:26.7]} 9... O-O
{[%clk 0:02:50.3]} 10. h3 {[%clk 0:02:26.7]} 10... Re8 {[%clk 0:02:50.1]} 11.
Qd2 {[%clk 0:02:01.3]} 11... a6 {[%clk 0:02:49.4]} 12. Rad1 {[%clk 0:01:59.3]}
12... Bf8 {[%clk 0:02:48.1]} 13. Nh4 {[%clk 0:01:42]} 13... exd4 {[%clk
0:02:37.1]} 14. Bxd4 {[%clk 0:01:40.3]} 14... c5 {[%clk 0:02:34.2]} 15. Bxf6
{[%clk 0:01:25.5]} 15... Nxf6 {[%clk 0:02:35.1]} 16. Nf5 {[%clk 0:01:09.7]}
16... b4 {[%clk 0:02:28.2]} 17. axb4 {[%clk 0:01:07.2]} 17... cxb4 {[%clk
0:02:27.9]} 18. Nd5 {[%clk 0:01:03.5]} 18... Nxe4 {[%clk 0:02:03.3]} 19. Qxb4
{[%clk 0:01:02.8]} 19... Rb8 {[%clk 0:02:03.6]} 20. Qa3 {[%clk 0:00:54.1]} 20...
a5 {[%clk 0:01:17.9]} 21. Rfe1 {[%clk 0:00:48]} 21... g6 {[%clk 0:01:13.7]} 22.
Nfe3 {[%clk 0:00:44.4]} 22... Qh4 {[%clk 0:01:13.2]} 23. Rf1 {[%clk 0:00:29.5]}
23... h5 {[%clk 0:01:07]} 24. Bf3 {[%clk 0:00:25.9]} 24... Ng5 {[%clk
0:01:05.7]} 25. Nf6+ {[%clk 0:00:24]} 25... Kh8 {[%clk 0:01:04.2]} 26. Bxb7
{[%clk 0:00:22.9]} 26... Re6 {[%clk 0:00:56.6]} 27. Nd7 {[%clk 0:00:20.2]} 27...
Rxb7 {[%clk 0:00:38.4]} 28. Nxf8 {[%clk 0:00:20.6]} 28... Re5 {[%clk 0:00:20]}
29. Qxd6 {[%clk 0:00:14.9]} 29... Rbe7 {[%clk 0:00:18]} 30. Qf6+ {[%clk
0:00:14.1]} 30... Kg8 {[%clk 0:00:17.2]} 31. Rd8 {[%clk 0:00:12.4]} 31... Re8
{[%clk 0:00:13.4]} 32. Rxe8 {[%clk 0:00:11.4]} 32... Rxe8 {[%clk 0:00:14.3]} 33.
Nd7 {[%clk 0:00:11.4]} 33... Re6 {[%clk 0:00:12.2]} 34. Qd8+ {[%clk 0:00:11.1]}
34... Kg7 {[%clk 0:00:12.6]} 35. Qc7 {[%clk 0:00:10.4]} 35... Ne4 {[%clk
0:00:08.9]} 36. Nc5 {[%clk 0:00:07.9]} 36... Re7 {[%clk 0:00:09.2]} 37. Qc8
{[%clk 0:00:06.7]} 37... Ng5 {[%clk 0:00:09.3]} 38. Nd3 {[%clk 0:00:05.3]} 38...
Re4 {[%clk 0:00:06.7]} 39. Qc3+ {[%clk 0:00:05.5]} 39... Kh7 {[%clk 0:00:06.6]}
40. Qc7 {[%clk 0:00:05.3]} 40... Kg7 {[%clk 0:00:06.3]} 41. Qg3 {[%clk
0:00:05.1]} 41... Ne6 {[%clk 0:00:05]} 42. Qxh4 {[%clk 0:00:05.1]} 42... Rxh4
{[%clk 0:00:05.9]} 43. Ra1 {[%clk 0:00:05.1]} 43... a4 {[%clk 0:00:04.2]} 44. c3
{[%clk 0:00:04.3]} 44... Re4 {[%clk 0:00:03.6]} 45. Nb4 {[%clk 0:00:04]} 45...
f5 {[%clk 0:00:03.8]} 46. Rxa4 {[%clk 0:00:03.6]} 46... f4 {[%clk 0:00:04.5]}
47. Nf1 {[%clk 0:00:03.9]} 47... Re1 {[%clk 0:00:04.4]} 48. Nd3 {[%clk
0:00:03.6]} 48... Rd1 {[%clk 0:00:04]} 49. Nxf4 {[%clk 0:00:04.1]} 49... Nc5
{[%clk 0:00:04.3]} 50. Rd4 {[%clk 0:00:04.4]} 50... Rb1 {[%clk 0:00:04.5]} 51.
Rd5 {[%clk 0:00:04.1]} 51... Nb3 {[%clk 0:00:04.7]} 52. Ne6+ {[%clk 0:00:03.1]}
52... Kf6 {[%clk 0:00:04.8]} 53. Nc5 {[%clk 0:00:03.5]} 53... Na1 {[%clk
0:00:04.4]} 54. Ne4+ {[%clk 0:00:03.4]} 54... Ke6 {[%clk 0:00:03.6]} 55. Rd2
{[%clk 0:00:03]} 55... Nb3 {[%clk 0:00:03.2]} 56. Re2 {[%clk 0:00:03.4]} 56...
Nc1 {[%clk 0:00:03.6]} 57. Ned2+ {[%clk 0:00:02.9]} 57... Nxe2+ {[%clk
0:00:03.6]} 58. Kh2 {[%clk 0:00:02.1]} 58... Rxb2 {[%clk 0:00:03.9]} 59. Nc4
{[%clk 0:00:02.3]} 59... Rb1 {[%clk 0:00:03.6]} 60. Nfe3 {[%clk 0:00:02.6]}
60... Nxc3 {[%clk 0:00:03]} 61. Nd2 {[%clk 0:00:02.2]} 61... Rc1 {[%clk
0:00:03]} 62. Nf3 {[%clk 0:00:02.6]} 62... Ne2 {[%clk 0:00:02.5]} 63. g3 {[%clk
0:00:02.1]} 63... Kf7 {[%clk 0:00:02.6]} 64. Kg2 {[%clk 0:00:02.7]} 64... Kg7
{[%clk 0:00:03]} 65. Ne5 {[%clk 0:00:02.9]} 65... Ra1 {[%clk 0:00:03.2]} 66. Nf3
{[%clk 0:00:03.3]} 66... Nc3 {[%clk 0:00:03.3]} 67. h4 {[%clk 0:00:03.5]} 67...
Ne4 {[%clk 0:00:03.7]} 68. Nd5 {[%clk 0:00:03.3]} 68... Nf6 {[%clk 0:00:04.2]}
69. Nf4 {[%clk 0:00:03.2]} 69... Ra2 {[%clk 0:00:04.4]} 70. Ne6+ {[%clk
0:00:02.2]} 70... Kh8 {[%clk 0:00:04]} 71. Ne5 {[%clk 0:00:02.3]} 71... Ne4
{[%clk 0:00:04.4]} 72. Nxg6+ {[%clk 0:00:02.3]} 72... Kg8 {[%clk 0:00:05]} 73.
Kf3 {[%clk 0:00:01.8]} 73... Rxf2+ {[%clk 0:00:04.9]} 74. Kxe4 {[%clk
0:00:01.3]} 74... Kf7 {[%clk 0:00:05.7]} 75. Nef4 {[%clk 0:00:02.1]} 75... Kf6
{[%clk 0:00:05.8]} 76. Ne5 {[%clk 0:00:02]} 76... Rf1 {[%clk 0:00:06.3]} 77. Nf3
{[%clk 0:00:02.3]} 77... Rxf3 {[%clk 0:00:05.4]} 78. Nxh5+ {[%clk 0:00:02.6]}
78... Kg6 {[%clk 0:00:05.4]} 79. Kxf3 {[%clk 0:00:03.2]} 79... Kxh5 {[%clk
0:00:06.3]} 80. Kg2 {[%clk 0:00:03.8]} 80... Kg4 {[%clk 0:00:06.5]} 81. Kh2
{[%clk 0:00:04.7]} 1-0

[Event "*** Titled Tuesday Blitz"]
[Site "Chess.com"]
[Date "2020.05.12"]
[Round "8"]
[White "vladislavkovalev"]
[Black "VincentKeymer"]
[Result "0-1"]
[WhiteElo "2895"]
[BlackElo "2751"]
[TimeControl "180+1"]
[EndTime "11:35:01 PDT"]
[Termination "VincentKeymer won on time"]

1. e4 {[%clk 0:03:00.9]} 1... c5 {[%clk 0:02:59]} 2. Be2 {[%clk 0:03:01.1]} 2...
d6 {[%clk 0:02:57.4]} 3. d3 {[%clk 0:03:02]} 3... g6 {[%clk 0:02:57.6]} 4. f4
{[%clk 0:03:02.5]} 4... Bg7 {[%clk 0:02:58]} 5. Nf3 {[%clk 0:03:03.4]} 5... e6
{[%clk 0:02:58.5]} 6. O-O {[%clk 0:03:04]} 6... Nc6 {[%clk 0:02:59.1]} 7. c3
{[%clk 0:03:04.6]} 7... Nge7 {[%clk 0:02:59]} 8. Be3 {[%clk 0:03:05.2]} 8... O-O
{[%clk 0:02:55.9]} 9. d4 {[%clk 0:03:05.7]} 9... b6 {[%clk 0:02:52.8]} 10. Nbd2
{[%clk 0:03:03.9]} 10... Bb7 {[%clk 0:02:51.9]} 11. Rc1 {[%clk 0:03:03]} 11...
Rc8 {[%clk 0:02:51.4]} 12. a3 {[%clk 0:03:03.1]} 12... Qd7 {[%clk 0:02:51]} 13.
b4 {[%clk 0:02:58.3]} 13... cxd4 {[%clk 0:02:41.9]} 14. cxd4 {[%clk 0:02:59.2]}
14... f5 {[%clk 0:02:42.2]} 15. e5 {[%clk 0:02:41.1]} 15... Nd5 {[%clk
0:02:41.5]} 16. Qb3 {[%clk 0:02:39.8]} 16... Nce7 {[%clk 0:02:17.8]} 17. Nc4
{[%clk 0:02:00.5]} 17... Ba6 {[%clk 0:02:17.5]} 18. Nxb6 {[%clk 0:01:49.4]}
18... axb6 {[%clk 0:02:17.4]} 19. Bxa6 {[%clk 0:01:49.7]} 19... Rxc1 {[%clk
0:02:18]} 20. Bxc1 {[%clk 0:01:45.5]} 20... Ra8 {[%clk 0:02:14.5]} 21. Be2
{[%clk 0:01:27.5]} 21... Rc8 {[%clk 0:02:09]} 22. Bd2 {[%clk 0:01:26.6]} 22...
h6 {[%clk 0:01:55.3]} 23. a4 {[%clk 0:01:24.5]} 23... Kf7 {[%clk 0:01:47.2]} 24.
Bb5 {[%clk 0:01:10.4]} 24... Qd8 {[%clk 0:01:41.4]} 25. Rc1 {[%clk 0:01:05.7]}
25... Rxc1+ {[%clk 0:01:39.1]} 26. Bxc1 {[%clk 0:01:06.6]} 26... dxe5 {[%clk
0:01:39.4]} 27. Nxe5+ {[%clk 0:00:59.3]} 27... Bxe5 {[%clk 0:01:38.6]} 28. dxe5
{[%clk 0:00:57.1]} 28... Nxb4 {[%clk 0:01:35.5]} 29. Qxb4 {[%clk 0:00:22.7]}
29... Qd1+ {[%clk 0:01:35.4]} 30. Bf1 {[%clk 0:00:23.2]} 30... Qxc1 {[%clk
0:01:35.6]} 31. Qxb6 {[%clk 0:00:23.8]} 31... g5 {[%clk 0:01:24.4]} 32. a5
{[%clk 0:00:22.7]} 32... Nd5 {[%clk 0:01:22.6]} 33. Qf2 {[%clk 0:00:11.1]} 33...
gxf4 {[%clk 0:01:16.8]} 34. a6 {[%clk 0:00:11.2]} 34... Ne3 {[%clk 0:01:13.7]}
35. Qxf4 {[%clk 0:00:08.6]} 35... Qc5 {[%clk 0:01:08]} 36. Qf2 {[%clk
0:00:08.2]} 36... Qa3 {[%clk 0:01:08.1]} 37. h3 {[%clk 0:00:05.4]} 37... h5
{[%clk 0:00:46.6]} 38. Be2 {[%clk 0:00:05.4]} 38... Ke7 {[%clk 0:00:45.1]} 39.
a7 {[%clk 0:00:04.7]} 39... Qxa7 {[%clk 0:00:43.7]} 40. Bxh5 {[%clk 0:00:05.3]}
40... Qa1+ {[%clk 0:00:43.6]} 41. Kh2 {[%clk 0:00:04.8]} 41... Nf1+ {[%clk
0:00:43.7]} 42. Kg1 {[%clk 0:00:05.4]} 42... Ne3+ {[%clk 0:00:36]} 43. Kh2
{[%clk 0:00:05.7]} 43... Qxe5+ {[%clk 0:00:36.4]} 44. g3 {[%clk 0:00:04]} 44...
Qd4 {[%clk 0:00:35.1]} 45. Kg1 {[%clk 0:00:02.9]} 45... e5 {[%clk 0:00:34.6]}
46. Bf3 {[%clk 0:00:02.8]} 46... Kf6 {[%clk 0:00:31.9]} 47. Be2 {[%clk
0:00:03.3]} 47... Qc3 {[%clk 0:00:28.3]} 48. Kh2 {[%clk 0:00:03.2]} 48... Qd2
{[%clk 0:00:26.8]} 49. Kg1 {[%clk 0:00:03.8]} 49... Qc1+ {[%clk 0:00:25.9]} 50.
Kh2 {[%clk 0:00:04.1]} 50... Qd2 {[%clk 0:00:23.9]} 51. Kg1 {[%clk 0:00:04.3]}
51... e4 {[%clk 0:00:23.4]} 52. h4 {[%clk 0:00:04.8]} 52... Nd5 {[%clk
0:00:20.3]} 53. Bf1 {[%clk 0:00:04.9]} 53... Qc3 {[%clk 0:00:15.7]} 54. h5
{[%clk 0:00:04.6]} 54... Kg5 {[%clk 0:00:14.7]} 55. Be2 {[%clk 0:00:03.3]} 55...
Qd2 {[%clk 0:00:13.2]} 56. Kg2 {[%clk 0:00:02.7]} 56... Nc3 {[%clk 0:00:13]} 57.
Bf1 {[%clk 0:00:02.3]} 57... Qxf2+ {[%clk 0:00:13.2]} 58. Kxf2 {[%clk
0:00:03.2]} 58... Kxh5 {[%clk 0:00:13.8]} 59. Ke3 {[%clk 0:00:04.1]} 59... Kg5
{[%clk 0:00:13.8]} 60. Bg2 {[%clk 0:00:04.1]} 60... Nd5+ {[%clk 0:00:13.9]} 61.
Kd4 {[%clk 0:00:04.6]} 61... Nf6 {[%clk 0:00:14.8]} 62. Ke5 {[%clk 0:00:02.9]}
62... e3 {[%clk 0:00:12]} 63. Bf3 {[%clk 0:00:03.2]} 63... Ne4 {[%clk
0:00:12.3]} 64. Kd4 {[%clk 0:00:02.7]} 64... Nxg3 {[%clk 0:00:12.2]} 65. Kxe3
{[%clk 0:00:03.1]} 65... f4+ {[%clk 0:00:10.6]} 66. Kd2 {[%clk 0:00:02.4]} 66...
Nf5 {[%clk 0:00:11.5]} 67. Kc3 {[%clk 0:00:02.5]} 67... Nh4 {[%clk 0:00:11.6]}
68. Ba8 {[%clk 0:00:03.1]} 68... Kg4 {[%clk 0:00:11.9]} 69. Kb4 {[%clk
0:00:03.6]} 69... Kg3 {[%clk 0:00:12.4]} 70. Bb7 {[%clk 0:00:04.1]} 70... Kf2
{[%clk 0:00:12.8]} 71. Ka5 {[%clk 0:00:04.6]} 71... Ke3 {[%clk 0:00:13.7]} 72.
Ka6 {[%clk 0:00:05.1]} 72... Nf5 {[%clk 0:00:12.6]} 73. Ka7 {[%clk 0:00:05.4]}
73... Nd6 {[%clk 0:00:12]} 74. Bh1 {[%clk 0:00:05.9]} 74... Ne4 {[%clk
0:00:11.8]} 75. Ka8 {[%clk 0:00:06.2]} 75... Nf2 {[%clk 0:00:11.2]} 76. Bb7
{[%clk 0:00:06.2]} 76... Ng4 {[%clk 0:00:10.3]} 77. Bc6 {[%clk 0:00:06.1]} 77...
Nf6 {[%clk 0:00:10.4]} 78. Bb7 {[%clk 0:00:06.6]} 78... Ne4 {[%clk 0:00:10.4]}
79. Ba6 {[%clk 0:00:04.8]} 79... f3 {[%clk 0:00:10.7]} 80. Bb5 {[%clk
0:00:04.3]} 80... Ng3 {[%clk 0:00:09.5]} 81. Bc4 {[%clk 0:00:03.3]} 81... f2
{[%clk 0:00:09.6]} 82. Kb7 {[%clk 0:00:02.8]} 82... Ne2 {[%clk 0:00:09.7]} 0-1